bitfinex/quotes_ETHUSD_20241223
["timestamp","ask_amount","ask_price","bid_price","bid_amount"]
[1734974839619,2.96327,3374.7,3374.3,2.76035972]
[1734974839817,1.32572218,3375.2,3373.9,2.76035972]
[1734974840029,2.96352,3374.4,3373.9,2.76035972]
[1734974840305,0.7738,3375.2,3374.0,0.04712549]
[1734974840499,0.7738,3375.2,3373.9,2.76035972]
[1734974840801,0.25,3376.3,3372.6,2.96503]
[1734974840802,2.96218,3375.9,3375.1,2.76035972]
[1734974841028,3.73689,3376.4,3375.2,0.0296244]
[1734974841204,2.9621,3376.0,3375.2,0.04652314]
[1734974841607,1.2712071,3376.4,3375.2,0.04652314]
[1734974841829,2.96208,3376.0,3375.2,0.07614584]
[1734974842032,2.96193,3376.2,3375.2,7.52293006]
[1734974842338,1.22418102,3376.7,3375.2,7.52293006]
[1734974842339,2.962,3376.1,3375.2,10.64809402]
[1734974842835,2.96184,3376.3,3375.2,3.1716871]
[1734974843045,2.96155,3376.6,3375.2,3.1716871]
[1734974843210,2.96198,3376.2,3375.3,0.31716871]
[1734974843627,0.02979118,3376.5,3375.4,0.04642278]
[1734974843826,0.8048,3376.8,3375.4,0.04642278]
[1734974844013,2.96173,3376.4,3375.4,0.04642278]
[1734974844215,2.96223,3375.9,3375.4,0.04642278]
[1734974844546,3.0,3376.5,3375.4,0.31715867]
[1734974844547,3.0,3376.4,3375.4,0.31715867]
[1734974844842,2.96156,3376.6,3375.7,3.12516396]
[1734974845044,0.8048,3376.8,3375.7,3.12516396]
[1734974845343,2.96217,3375.9,3375.8,0.04520264]
[1734974845718,3.0,3376.3,3375.2,3.12516396]
[1734974846017,3.0,3376.3,3375.3,1.06015709]
[1734974846213,2.96207,3376.1,3375.3,1.10558912]
[1734974846605,5.96187,3376.3,3375.3,0.04543203]
[1734974846906,2.96213,3376.0,3375.3,0.04543203]
[1734974847106,2.96191,3376.2,3375.3,0.04543203]
[1734974848316,2.96147,3376.7,3375.7,3.12516396]
[1734974848640,2.9621,3376.0,3375.8,0.0437002]
[1734974848799,2.96217,3375.9,3375.8,0.0437002]
[1734974849004,2.96217,3375.9,3375.2,3.12516396]
[1734974849206,2.96228,3375.8,3375.2,3.12516396]
[1734974853043,0.376658,3375.8,3375.2,3.12516396]
[1734974853244,2.96271,3375.3,3374.7,3.12516396]
[1734974853843,2.96259,3375.5,3374.7,3.12516396]
[1734974854009,3.0,3375.4,3374.7,3.12516396]
[1734974854209,2.9627,3375.3,3374.8,0.0444111]
[1734974854513,2.96282,3375.2,3374.8,0.0444111]
[1734974854711,2.96282,3375.2,3374.7,3.12516396]
[1734974854984,0.8043,3376.0,3375.0,2.96288]
[1734974855127,0.8043,3376.0,3374.8,0.04449155]
[1734974855128,2.962,3376.1,3375.3,3.12516396]
[1734974855328,3.21059,3377.8,3375.3,3.12516396]
[1734974855329,0.819,3377.2,3375.8,3.12516396]
[1734974855529,2.96168,3376.5,3375.8,3.12516396]
[1734974855730,2.96168,3376.5,3375.9,0.04389673]
[1734974855930,0.819,3377.2,3375.9,0.04389673]
[1734974855931,2.96183,3376.3,3375.9,0.04389673]
[1734974856172,2.9619,3376.3,3375.3,3.12516396]
[1734974856472,2.96195,3376.2,3375.4,1.40057764]
[1734974856631,2.96195,3376.2,3375.4,0.04414755]
[1734974857157,3.0,3376.2,3375.4,0.04414755]
[1734974857342,3.55,3376.1,3375.4,0.04414755]
[1734974857544,3.55,3376.1,3375.3,3.12516396]
[1734974857744,2.96208,3376.0,3375.9,0.1]
[1734974857960,5.96208,3376.0,3375.9,0.1]
[1734974858770,8.264884,3376.0,3374.1,6.08889396]
[1734974858969,2.96295,3375.1,3374.1,3.12516396]
[1734974859301,3.0,3375.5,3374.2,0.04472302]
[1734974859459,0.7521,3375.1,3374.2,0.04472302]
[1734974859792,0.7521,3375.1,3373.6,3.12516396]
[1734974859793,0.57979118,3375.0,3373.1,3.12516396]
[1734974859993,0.43318912,3374.9,3373.6,3.12516396]
[1734974860174,3.0,3374.9,3373.6,3.12516396]
[1734974860376,0.7521,3375.1,3373.5,2.96424]
[1734974860377,2.96259,3375.5,3374.3,2.96349]
[1734974860697,3.0,3375.4,3374.4,2.96346]
[1734974861102,2.96246,3375.6,3374.5,2.96338]
[1734974861388,2.96228,3375.8,3374.6,6.38473196]
[1734974861607,2.96228,3375.8,3374.6,3.42150196]
[1734974861785,0.7775,3376.0,3374.7,0.04491186]
[1734974862092,3.7396,3376.0,3374.7,0.04491186]
[1734974862300,2.96242,3375.7,3374.7,0.04491186]
[1734974862527,0.32603318,3375.6,3374.7,0.04491186]
[1734974862804,2.96261,3375.4,3374.7,0.04491186]
[1734974863010,2.96261,3375.4,3374.4,0.1]
[1734974863011,2.96331,3374.6,3374.4,0.1]
[1734974863556,2.9634,3374.5,3374.4,0.1]
[1734974863774,3.556061,3374.5,3374.4,0.1]
[1734974863999,7.319261,3374.5,3374.4,0.1]
[1734974864921,0.55,3374.4,3372.7,0.1]
[1734974865126,3.0,3373.6,3372.7,0.1]
[1734974865261,2.9642,3373.6,3372.7,0.38580655]
[1734974865792,2.96434,3373.5,3372.7,0.38580655]
[1734974865994,2.96439,3373.4,3372.7,0.38580655]
[1734974866229,2.96425,3373.6,3372.7,0.1]
[1734974866506,0.02979118,3374.2,3372.9,2.75806554]
[1734974866801,2.96447,3373.3,3372.7,0.1]
[1734974867609,2.96463,3373.1,3372.7,0.1]
[1734974867762,5.96489,3372.8,3372.7,0.1]
[1734974868468,2.9647,3373.1,3372.7,0.1]
[1734974868701,3.0,3373.3,3372.7,0.1]
[1734974868998,2.96395,3373.9,3372.9,2.75806554]
[1734974869206,2.96402,3373.8,3373.0,0.04732216]
[1734974869397,0.7554,3374.1,3373.0,0.04732216]
[1734974869588,2.96406,3373.8,3373.0,0.04732216]
[1734974869796,0.7554,3374.1,3373.0,0.04732216]
[1734974869797,0.02979118,3374.0,3373.0,0.04732216]
[1734974870104,2.96428,3373.5,3373.0,0.04732216]
[1734974870407,2.96428,3373.5,3372.7,0.1]
[1734974870577,2.96392,3373.9,3372.8,0.04742266]
[1734974870898,0.55,3374.0,3372.8,0.04742266]
[1734974871097,2.96413,3373.7,3372.8,0.0770683]
[1734974871302,2.96413,3373.7,3372.8,0.04742266]
[1734974871607,3.0,3374.9,3372.9,2.75806554]
[1734974871766,2.9635,3374.4,3373.4,2.96429]
[1734974871966,2.9635,3374.4,3373.7,2.75806554]
[1734974872161,2.9635,3374.4,3373.8,0.04692031]
[1734974872383,2.96333,3374.6,3373.8,0.04692031]
[1734974873264,0.02979118,3374.6,3373.8,0.04692031]
[1734974873463,2.9634,3374.5,3373.8,0.04692031]
[1734974873659,2.96359,3374.3,3373.3,2.75806554]
[1734974873875,2.96359,3374.3,3373.9,0.04687009]
[1734974874080,2.96359,3374.3,3373.4,0.47256225]
[1734974874317,2.96359,3374.3,3374.0,0.04681987]
[1734974874483,2.96359,3374.3,3373.4,0.47256225]
[1734974874681,2.96359,3374.3,3374.1,0.04676966]
[1734974874909,2.96359,3374.3,3373.4,0.47256225]
[1734974875110,0.02979118,3374.6,3373.5,0.61951578]
[1734974875283,2.96351,3374.4,3373.5,0.66658676]
[1734974878401,0.30958118,3375.5,3374.2,2.75806554]
[1734974878731,0.30958118,3375.5,3374.6,2.75806554]
[1734974879111,2.96217,3375.9,3374.6,2.75806554]
[1734974879112,2.96217,3375.9,3374.7,0.04688164]
[1734974879754,2.96228,3375.8,3374.7,0.04688164]
[1734974880537,3.0,3375.7,3374.7,0.04688164]
[1734974880741,2.96263,3375.4,3374.7,0.04688164]
[1734974880888,2.96288,3375.1,3374.7,0.04688164]
[1734974881451,0.29924212,3375.4,3374.2,2.75806554]
[1734974881452,3.0,3375.6,3374.8,2.96309]
[1734974881583,3.0,3375.8,3375.0,2.75806554]
[1734974881790,0.8189,3376.4,3375.4,2.75806554]
[1734974882142,0.8189,3376.4,3375.5,0.04335679]
[1734974882143,2.9622,3375.9,3375.5,0.04335679]
[1734974882510,2.9622,3375.9,3374.9,2.75806554]
[1734974883050,0.40784618,3376.3,3374.9,2.75806554]
[1734974883051,2.96234,3375.7,3375.0,0.04360768]
[1734974883192,5.96217,3376.0,3375.0,0.04360768]
[1734974883395,0.55,3376.2,3375.0,0.04360768]
[1734974883593,2.96235,3375.7,3375.0,0.04360768]
[1734974884049,0.30956141,3376.9,3375.3,5.72071554]
[1734974884050,2.96173,3376.5,3375.3,5.72071554]
[1734974884210,0.7527,3376.8,3375.4,2.96253]
[1734974884394,0.7527,3376.8,3375.3,2.75806554]
[1734974884751,2.96244,3375.6,3375.4,0.04333192]
[1734974885248,2.96244,3375.6,3375.5,0.04328175]
[1734974885410,2.9617,3376.5,3375.5,0.04328175]
[1734974885618,3.0,3375.9,3375.0,0.02962621]
[1734974885788,5.96222,3375.9,3375.1,0.04348245]
[1734974885994,2.96228,3375.8,3374.9,2.75806554]
[1734974886194,3.0,3376.0,3375.0,0.04353263]
[1734974886460,2.96209,3376.0,3375.0,3.00640263]
[1734974886594,2.96226,3375.8,3375.0,0.04353263]
[1734974886794,2.96235,3375.7,3375.0,0.04353263]
[1734974888397,0.02979118,3375.6,3375.0,0.04353263]
[1734974888611,2.96253,3375.5,3375.0,0.04353263]
[1734974888824,3.02979118,3375.9,3375.0,0.04353263]
[1734974889008,5.99204118,3375.9,3375.0,0.04353263]
[1734974889249,2.96278,3375.2,3375.0,0.04353263]
[1734974889664,3.0,3375.5,3374.5,2.75806554]
[1734974889798,2.96288,3375.1,3374.5,2.75806554]
[1734974889998,2.96308,3374.9,3374.5,2.75806554]
[1734974890198,2.96321,3374.8,3374.1,2.75806554]
[1734974890402,0.57979118,3375.1,3373.7,3.93517703]
[1734974890857,0.57979118,3375.1,3373.7,2.75806554]
[1734974890858,2.96344,3374.5,3373.7,2.75806554]
[1734974891638,2.96338,3374.6,3373.7,2.75806554]
[1734974892199,2.96305,3374.9,3373.7,5.72216554]
[1734974892405,2.96331,3374.6,3373.7,2.75806554]
[1734974892607,2.96335,3374.6,3373.7,2.75806554]
[1734974893715,2.9635,3374.4,3373.8,0.04413506]
[1734974894263,0.730135,3374.8,3373.8,0.04413506]
[1734974894447,2.96331,3374.6,3373.8,0.04413506]
[1734974895242,3.0,3374.9,3374.1,2.75806554]
[1734974895528,5.96315,3374.8,3374.1,2.75806554]
[1734974895964,2.96323,3374.7,3374.2,0.0443256]
[1734974898047,3.0,3374.8,3374.2,0.0443256]
[1734974898248,3.0,3375.1,3374.2,0.0443256]
[1734974898461,3.0,3374.8,3374.2,0.0443256]
[1734974898662,3.0,3375.1,3374.5,2.75806554]
[1734974898909,0.7588,3375.9,3374.6,2.99290148]
[1734974899191,1.98298102,3376.2,3374.9,2.75806554]
[1734974899344,2.96226,3375.8,3374.9,2.75806554]
[1734974899552,2.96226,3375.8,3375.0,0.04433687]
[1734974899730,1.22418102,3376.4,3375.7,2.75806554]
[1734974899930,2.962,3376.1,3375.3,2.75806554]
[1734974900166,1.22418102,3376.4,3375.3,2.75806554]
[1734974900167,2.96212,3376.0,3375.3,2.75806554]
[1734974900363,0.02979118,3376.3,3375.3,2.75806554]
[1734974900364,0.02979118,3375.9,3375.3,2.75806554]
[1734974900563,2.96227,3375.8,3375.4,0.04387342]
[1734974900767,2.96237,3375.7,3375.4,0.04387342]
[1734974901020,2.96225,3375.9,3375.4,0.04387342]
[1734974901325,2.96225,3375.9,3375.5,0.04361419]
[1734974901618,3.0,3376.4,3375.3,5.72073554]
[1734974901822,0.02979118,3376.3,3375.3,2.75806554]
[1734974902000,0.7779,3376.2,3375.4,0.043659]
[1734974902204,2.96252,3375.5,3375.4,0.043659]
[1734974902375,2.96261,3375.4,3374.9,2.75806554]
[1734974902701,3.73987,3376.2,3375.0,0.04380076]
[1734974902906,0.02979118,3376.1,3375.0,0.04380076]
[1734974903075,2.96235,3375.7,3375.0,0.04380076]
[1734974903722,2.96254,3375.5,3375.0,0.04380076]
[1734974903964,0.02979118,3375.6,3375.0,0.04380076]
[1734974904070,3.51287,3375.1,3375.0,0.04380076]
[1734974904265,3.51287,3375.1,3374.1,0.1]
[1734974904266,2.96352,3374.4,3374.1,0.1]
[1734974904469,2.96329,3374.7,3374.1,0.1]
[1734974904720,3.0,3374.9,3374.2,0.0437841]
[1734974904921,2.96313,3374.8,3374.2,0.0437841]
[1734974905123,3.0,3374.9,3374.2,0.0437841]
[1734974905124,2.96329,3374.7,3374.2,0.0437841]
[1734974905419,3.0,3374.9,3374.2,0.0437841]
[1734974905585,2.96332,3374.6,3374.2,0.0437841]
[1734974905924,2.96342,3374.5,3374.2,0.0437841]
[1734974906286,2.96325,3374.7,3374.2,0.0437841]
[1734974906491,2.96337,3374.6,3374.2,0.0437841]
[1734974907620,2.96337,3374.6,3374.2,0.1437841]
[1734974907787,2.96344,3374.5,3374.2,0.1437841]
[1734974908682,2.96357,3374.3,3374.2,0.1437841]
[1734974908889,5.96357,3374.3,3374.2,0.1437841]
[1734974909080,0.296344,3374.5,3374.2,0.1]
[1734974909269,0.59919612,3375.8,3374.2,0.1]
[1734974909270,3.0,3374.8,3374.2,0.1]
[1734974909469,3.0,3374.5,3374.2,0.1]
[1734974909670,2.96294,3375.1,3374.3,0.04319986]
[1734974909892,2.96294,3375.1,3374.3,0.3433264]
[1734974910102,2.96294,3375.1,3374.3,0.37295892]
[1734974910307,4.18687102,3375.4,3374.3,0.3433264]
[1734974910506,0.02979118,3375.3,3374.3,0.04319986]
[1734974910726,2.96322,3374.7,3374.3,0.04319986]
[1734974910932,2.96313,3374.8,3374.2,0.1]
[1734974911235,3.0,3374.5,3374.3,0.04315163]
[1734974911380,2.99310118,3374.6,3374.3,0.04315163]
[1734974911381,6.51348,3374.4,3374.3,0.04315163]
[1734974911590,2.96357,3374.3,3374.2,0.1]
[1734974912147,2.96331,3374.6,3374.2,0.1]
[1734974912292,2.96357,3374.3,3374.2,0.1]
[1734974912497,5.96357,3374.3,3374.2,0.1]
[1734974913789,6.51357,3374.3,3374.2,0.1]
[1734974914009,7.542685,3374.3,3374.2,0.1]
[1734974917515,6.51366,3374.2,3374.1,1e-05]
[1734974917726,7.32446,3374.2,3374.1,1e-05]
[1734974919254,4.32446,3374.2,3374.1,1e-05]
[1734974919751,5.54864102,3374.2,3374.1,1e-05]
[1734974919953,6.9322777,3374.2,3374.1,1e-05]
[1734974920453,8.70809668,3374.2,3374.1,1e-05]
[1734974920971,3.0,3374.1,3372.6,2.42871954]
[1734974921167,2.96423,3373.6,3372.6,2.42871954]
[1734974921326,3.0,3374.1,3372.7,0.04342027]
[1734974921327,2.96436,3373.4,3372.7,0.04342027]
[1734974921526,2.96456,3373.2,3372.7,0.04342027]
[1734974921732,2.96456,3373.2,3372.2,5.72347554]
[1734974921936,2.96456,3373.2,3372.8,0.04337002]
[1734974922129,2.96467,3373.1,3372.2,2.75806554]
[1734974922350,2.96475,3373.0,3372.9,0.04331977]
[1734974922564,0.02979118,3373.1,3371.8,3.93517703]
[1734974922728,2.96523,3372.5,3371.8,1.17711149]
[1734974922931,0.02979118,3372.8,3371.9,0.04382239]
[1734974923265,0.7871,3373.8,3372.2,2.75806554]
[1734974923463,3.0,3373.3,3372.3,2.96533]
[1734974923667,2.96437,3373.4,3372.3,3.0089513]
[1734974924180,3.0,3373.5,3372.6,2.75806554]
[1734974924487,2.15373668,3374.2,3372.7,0.61575082]
[1734974924780,3.0,3373.7,3372.8,2.96489]
[1734974925071,3.0,3373.6,3372.9,0.04331977]
[1734974925365,2.96397,3373.9,3372.9,3.00803977]
[1734974925572,2.96397,3373.9,3372.9,2.96472]
[1734974925751,2.96397,3373.9,3372.7,7.47640692]
[1734974925752,2.96403,3373.8,3373.0,0.04326952]
[1734974926143,4.94182102,3375.0,3373.1,2.75806554]
[1734974926466,2.96357,3374.4,3373.4,2.96436]
[1734974926776,2.96305,3374.9,3373.2,0.27580655]
[1734974926920,2.96331,3374.6,3373.5,0.04301834]
[1734974927116,0.7643,3374.4,3373.3,0.0431188]
[1734974927320,2.96412,3373.7,3372.7,2.75806554]
[1734974927676,2.96419,3373.6,3372.7,2.75806554]
[1734974927837,2.96419,3373.6,3372.8,0.04337002]
[1734974928033,2.96419,3373.6,3372.9,0.57664656]
[1734974928250,2.96439,3373.4,3373.0,0.04326952]
[1734974928451,2.96439,3373.4,3372.4,2.96522]
[1734974928851,2.96439,3373.4,3372.5,0.04352078]
[1734974929259,0.7643,3374.4,3372.7,2.75806554]
[1734974929437,3.0,3374.1,3372.8,1.07413404]
[1734974929642,3.0,3374.3,3373.2,2.96449]
[1734974929860,3.0,3374.3,3373.3,0.0431188]
[1734974930322,3.0,3374.3,3373.3,0.07275938]
[1734974930725,1.22418102,3375.5,3373.9,2.75806554]
[1734974931058,1.22418102,3375.5,3374.7,2.75806554]
[1734974931260,1.22418102,3375.5,3374.8,0.04236561]
[1734974931576,2.96235,3375.7,3374.8,0.04236561]
[1734974931780,2.96246,3375.6,3374.8,0.04236561]
[1734974932074,2.96246,3375.6,3374.9,0.04231542]
[1734974932214,4.18644102,3375.8,3374.9,0.04231542]
[1734974932423,4.18644102,3375.8,3374.6,2.96329]
[1734974932726,2.96236,3375.7,3374.7,0.33813971]
[1734974933270,3.0,3375.7,3374.7,3.30134971]
[1734974933671,2.96191,3376.2,3375.0,2.9629]
[1734974933873,0.7734,3376.3,3374.8,0.02962702]
[1734974933874,2.96175,3376.4,3375.2,2.96277]
[1734974934173,2.96157,3376.6,3375.5,2.96244]
[1734974934468,2.96157,3376.6,3375.3,0.2992393]
[1734974934469,2.96204,3376.1,3375.3,0.3407489]
[1734974934681,2.96204,3376.1,3375.3,0.2992393]
[1734974934819,2.96204,3376.1,3375.4,0.04145942]
[1734974935020,2.96181,3376.4,3375.4,0.04145942]
[1734974935264,0.7734,3376.7,3375.4,0.04145942]
[1734974935265,2.96191,3376.2,3375.4,0.64761885]
[1734974935570,2.96191,3376.2,3375.4,0.67724166]
[1734974935875,0.7734,3376.7,3375.4,0.64761885]
[1734974936076,3.0,3376.5,3375.4,0.04145942]
[1734974936275,2.96225,3375.9,3375.4,0.04145942]
[1734974936424,2.96225,3375.9,3375.0,7.47640692]
[1734974936649,2.96225,3375.9,3375.1,0.04046421]
[1734974936843,2.96182,3376.3,3375.1,0.04046421]
[1734974936844,2.96199,3376.2,3375.1,0.04046421]
[1734974937048,3.0,3376.4,3375.2,1.04799111]
[1734974937301,3.0,3376.4,3375.3,0.04041201]
[1734974937466,2.96218,3375.9,3375.3,0.04041201]
[1734974937801,3.0,3376.1,3375.0,7.47640692]
[1734974937986,2.96253,3375.5,3375.4,0.04036183]
[1734974938191,2.96278,3375.3,3374.1,2.96375]
[1734974938798,2.96278,3375.3,3374.2,0.04103903]
[1734974938979,2.96278,3375.3,3374.2,3.00469903]
[1734974939687,3.0,3375.4,3374.2,0.04103903]
[1734974939887,2.96287,3375.2,3374.2,0.04103903]
[1734974940064,3.0,3375.4,3374.2,0.04103903]
[1734974940267,0.02979118,3375.3,3374.2,0.04103903]
[1734974940610,0.55,3375.2,3374.2,0.04103903]
[1734974940790,2.96295,3375.1,3374.0,0.02963568]
[1734974940951,2.96295,3375.1,3374.3,0.04121896]
[1734974941152,2.96295,3375.1,3374.3,0.02963277]
[1734974941471,2.96272,3375.3,3374.4,0.04116876]
[1734974941678,3.0,3375.5,3374.4,0.04116876]
[1734974941916,2.96291,3375.1,3374.4,0.04116876]
[1734974942125,2.96317,3374.8,3374.4,0.04116876]
[1734974942475,3.0,3375.4,3374.5,2.96338]
[1734974942708,3.0,3375.6,3374.6,0.04127176]
[1734974942868,3.787,3376.1,3374.7,2.75806554]
[1734974943064,3.0,3375.9,3374.8,0.04117138]
[1734974943304,3.787,3376.1,3374.8,0.04117138]
[1734974943486,2.9625,3375.6,3374.8,0.04117138]
[1734974943791,0.57979118,3375.8,3374.8,0.04117138]
[1734974943980,0.65420112,3375.7,3374.8,0.04117138]
[1734974944211,2.96298,3375.0,3374.0,10.44023692]
[1734974944521,2.96298,3375.0,3374.1,0.04142107]
[1734974944820,2.9629,3375.1,3374.1,0.04142107]
[1734974945023,2.96252,3375.5,3374.4,2.96345]
[1734974945331,2.96252,3375.5,3374.5,0.6133718]
[1734974946407,0.65420112,3375.7,3374.5,0.6133718]
[1734974946730,2.96252,3375.5,3374.5,0.04122025]
[1734974946882,2.96285,3375.2,3374.5,0.04122025]
[1734974947081,2.96285,3375.2,3374.4,7.47640692]
[1734974947297,2.96285,3375.2,3374.6,0.04117005]
[1734974947504,2.96285,3375.2,3374.5,0.04122025]
[1734974947675,2.96285,3375.2,3374.7,0.04111986]
[1734974947877,2.96285,3375.2,3374.3,2.75806554]
[1734974948081,2.96285,3375.2,3374.8,0.04106967]
[1734974948279,2.96285,3375.2,3374.3,4.08789479]
[1734974948584,2.96243,3375.6,3374.9,0.04101948]
[1734974948585,2.96296,3375.0,3374.9,0.04101948]
[1734974948806,2.9629,3375.1,3374.1,7.57640692]
[1734974949022,0.55,3375.6,3374.1,7.57640692]
[1734974949224,2.96307,3374.9,3374.2,0.04137086]
[1734974949593,0.55,3375.6,3374.5,0.1]
[1734974949932,2.96288,3375.1,3374.6,0.04112188]
[1734974950122,0.02979118,3375.4,3374.6,0.04112188]
[1734974950329,2.96311,3374.9,3374.6,0.04112188]
[1734974950629,0.02979118,3375.2,3374.6,0.04112188]
[1734974950831,0.788,3375.0,3374.6,0.04112188]
[1734974951021,0.02979118,3374.9,3374.6,0.04112188]
[1734974951534,2.96322,3374.7,3374.6,0.04112188]
[1734974951708,2.96322,3374.7,3374.5,1.88e-06]
[1734974951709,5.96331,3374.6,3374.5,1.88e-06]
[1734974951906,2.96366,3374.2,3374.1,1.88e-06]
[1734974952104,6.51366,3374.2,3374.1,1.88e-06]
[1734974952304,3.0,3374.2,3374.1,1.88e-06]
[1734974952505,2.96349,3374.4,3374.1,1.88e-06]
[1734974952731,2.96366,3374.2,3374.1,1.88e-06]
[1734974953534,3.26300512,3374.2,3374.1,1.88e-06]
[1734974953698,6.26300512,3374.2,3374.1,1.88e-06]
[1734974954146,6.26300512,3374.2,3374.1,0.10000188]
[1734974955115,2.96366,3374.2,3374.1,0.10000188]
[1734974956610,3.0,3374.3,3374.1,0.10000188]
[1734974956816,2.96333,3374.6,3374.1,0.10000188]
[1734974957231,2.96314,3374.8,3374.2,0.03895467]
[1734974957426,0.8182,3375.0,3374.2,0.03895467]
[1734974957853,0.4108823,3374.9,3374.2,0.03895467]
[1734974958165,2.96322,3374.8,3374.3,0.03890446]
[1734974958341,3.0,3374.7,3374.3,0.03890446]
[1734974958540,2.96324,3374.7,3374.1,0.10000188]
[1734974958728,2.96331,3374.6,3374.1,0.10000188]
[1734974958921,2.96331,3374.6,3374.2,0.03895467]
[1734974960064,2.96343,3374.5,3374.2,0.03895467]
[1734974960388,2.96366,3374.2,3374.1,0.10000188]
[1734974961134,5.96366,3374.2,3374.1,0.10000188]
[1734974961935,7.27796,3374.2,3374.1,0.10000188]
[1734974962561,7.27796,3374.2,3374.1,1.88e-06]
[1734974962963,7.32266,3374.2,3374.1,1.88e-06]
[1734974963162,7.32266,3374.2,3371.9,3.93517703]
[1734974963163,0.7525,3374.0,3371.9,3.93517703]
[1734974963476,2.9649,3372.8,3371.9,3.93517703]
[1734974963775,2.9651,3372.6,3372.0,0.03963678]
[1734974963973,2.96489,3372.8,3372.0,0.03963678]
[1734974964680,2.96506,3372.7,3372.0,0.03963678]
[1734974964977,2.96506,3372.7,3371.8,7.47640692]
[1734974965276,2.96506,3372.7,3372.1,0.03990807]
[1734974965583,3.73885,3373.1,3371.8,8.79645317]
[1734974965584,3.55,3373.0,3372.2,0.0399114]
[1734974965791,2.96533,3372.3,3372.2,0.0399114]
[1734974966080,0.02979118,3372.7,3371.2,7.47640692]
[1734974966241,2.96559,3372.1,3371.3,1.02344725]
[1734974966436,0.02979118,3372.4,3371.3,1.06452922]
[1734974966666,2.96576,3371.9,3371.3,0.04108197]
[1734974966972,2.96542,3372.2,3370.8,7.47640692]
[1734974966973,2.96581,3371.8,3370.8,7.47640692]
[1734974967174,2.96581,3371.8,3371.4,0.04125685]
[1734974967474,2.96551,3372.1,3370.9,2.96655]
[1734974967677,0.84389118,3372.3,3371.5,0.0413567]
[1734974967851,2.96594,3371.7,3370.8,7.47640692]
[1734974968058,2.96555,3372.1,3370.9,1.14115839]
[1734974968239,2.96647,3371.0,3370.9,5.97375849]
[1734974968441,5.96647,3371.0,3370.9,5.97375849]
[1734974968795,2.96611,3371.5,3370.9,5.9321]
[1734974969006,3.78485,3371.8,3370.9,5.9321]
[1734974969296,2.96597,3371.6,3371.0,0.04160818]
[1734974969579,0.819,3371.8,3371.0,5.97450818]
[1734974969580,2.96608,3371.5,3371.0,5.97450818]
[1734974970075,2.96556,3372.1,3371.0,5.97450818]
[1734974970076,2.96589,3371.7,3371.0,5.97450818]
[1734974970690,2.96639,3371.1,3371.0,5.97450818]
[1734974971265,2.96639,3371.1,3371.0,5.9329]
[1734974971587,2.96639,3371.1,3371.0,5.97450818]
[1734974972155,3.0,3371.9,3371.0,6.581959]
[1734974972369,0.7845,3372.3,3371.0,16.81643146]
[1734974972576,2.96517,3372.5,3371.4,5.72418554]
[1734974972748,2.96517,3372.5,3371.4,11.65648554]
[1734974972948,2.96517,3372.5,3371.5,1.20700525]
[1734974973206,2.96517,3372.5,3371.5,7.13910525]
[1734974973487,2.96525,3372.4,3371.5,7.13910525]
[1734974973781,3.82156118,3372.9,3371.5,7.13910525]
[1734974973782,2.96522,3372.5,3371.5,7.13910525]
[1734974974002,3.0,3372.4,3371.5,7.13910525]
[1734974974184,2.96528,3372.4,3371.6,1.28633708]
[1734974974387,3.0,3372.3,3371.6,7.25970976]
[1734974975307,5.96541,3372.3,3371.6,7.25970976]
[1734974975696,2.9656,3372.0,3371.6,5.97337268]
[1734974975889,3.02979118,3372.4,3371.6,5.97337268]
[1734974976090,2.96544,3372.2,3371.6,5.97337268]
[1734974976608,2.96544,3372.2,3371.6,6.07337268]
[1734974976804,2.96551,3372.1,3371.6,6.07337268]
[1734974977107,2.96534,3372.3,3371.6,6.07337268]
[1734974977604,2.96542,3372.2,3371.6,6.07337268]
[1734974977911,3.8269,3372.9,3371.7,0.60733727]
[1734974978109,0.43399209,3373.2,3371.7,0.60733727]
[1734974978110,2.96506,3372.7,3371.8,0.02965528]
[1734974978419,2.96506,3372.7,3371.8,5.96115528]
[1734974978583,2.96489,3372.9,3371.9,0.0414558]
[1734974978909,2.96489,3372.9,3371.9,8.9385358]
[1734974979108,2.96489,3372.9,3372.0,1.97803455]
[1734974979328,2.96494,3372.8,3372.0,7.90923455]
[1734974979630,2.96494,3372.8,3372.1,0.04135525]
[1734974979922,2.96494,3372.8,3372.1,5.97235525]
[1734974980216,2.96458,3373.2,3372.1,5.97235525]
[1734974980217,2.96519,3372.5,3372.1,5.97235525]
[1734974980451,3.0,3373.1,3372.1,5.97235525]
[1734974980631,3.727104,3373.1,3372.1,5.97235525]
[1734974980781,0.767,3373.7,3372.2,0.02965293]
[1734974980986,3.0,3373.4,3372.2,11.68391847]
[1734974981222,3.0,3373.6,3372.3,0.04125472]
[1734974981396,3.0,3373.6,3372.3,5.97195472]
[1734974982031,3.0,3373.6,3372.4,0.02964853]
[1734974982195,3.673115,3373.6,3372.4,7.13265341]
[1734974982391,2.96456,3373.2,3372.5,0.0408325]
[1734974982628,2.96507,3372.6,3372.5,5.9711325]
[1734974982826,5.96507,3372.6,3372.5,5.9711325]
[1734974983243,5.96507,3372.6,3372.5,5.9303]
[1734974983411,6.934665,3372.6,3372.5,5.9303]
[1734974983810,6.934665,3372.6,3372.5,5.96922361]
[1734974985095,7.484665,3372.6,3372.5,0.03762628]
[1734974985294,7.484665,3372.6,3371.6,0.1]
[1734974985496,2.96575,3371.9,3371.6,0.1]
[1734974985934,2.96575,3371.9,3371.7,0.03802845]
[1734974986132,2.96575,3371.9,3371.6,6.0316]
[1734974986738,2.96575,3371.9,3371.7,0.03802845]
[1734974987318,2.96554,3372.1,3371.7,0.03802845]
[1734974987520,4.519595,3372.6,3371.7,0.03802845]
[1734974987521,0.969595,3372.6,3371.7,0.03802845]
[1734974987834,0.02979118,3372.8,3371.7,5.96982845]
[1734974988038,2.9649,3372.8,3371.7,8.93564845]
[1734974988345,3.0,3372.7,3371.7,8.93564845]
[1734974988551,3.0,3372.7,3371.7,5.96982845]
[1734974988855,0.766,3372.9,3371.8,0.2460202]
[1734974989056,2.96498,3372.7,3371.8,0.2460202]
[1734974989258,2.96498,3372.7,3371.8,0.67953316]